[Event "1st Sales Oliveira Masters 2022"]
[Site "Sales Oliveira"]
[Date "2022.06.08"]
[Round "1.2"]
[White "Born, Carlos Rodrigo"]
[Black "Delgado Ramirez, Neuris"]
[Result "0-1"]
[ECO "A07"]
[WhiteElo "2292"]
[BlackElo "2603"]
[Annotator "TA"]
[PlyCount "78"]
[EventDate "2022.05.30"]
[EventType "swiss"]
[EventCountry "BRA"]
[SourceTitle "playchess.com"]
[Source "ChessBase"]
[SourceQuality "1"]
[TimeControl "40/5400+30:1800+30"]

{[%evp 10,78,21,0,0,-3,9,-13,14,8,28,29,39,0,21,-32,-41,-44,-38,-35,-18,-50,-31,-70,-64,-72,-24,-35,-28,-43,0,0,0,-38,-30,-63,-60,-75,-66,-96,-89,-114,-110,-119,-121,-110,-108,-181,-181,-195,-195,-188,-188,-1375,-1371,-1356,-1364,-1352,-1352,-1346,-1293,-1205,-1196,-5197,-5173,-2086,-1964,-29966,-29967,-5808,-4492]} 1. Nf3 {[%emt 0:00:01]} Nf6 {[%emt 0:00:06]} 2. g3 {[%emt 0:00:02]} d5 {[%emt 0:00:26]} 3. Bg2 {[%emt 0:00:52]} c6 {[%emt 0:00:09]} 4. O-O {[%emt 0:00:19]} Bg4 {[%emt 0:00:14]} 5. h3 {[%emt 0:00:23]} Bxf3 {[%emt 0:01:37]} 6. Bxf3 {[%emt 0:01:00]} e5 {[%emt 0:00:08] A07: Réti Opening: New York and Capablanca Systems.} 7. d3 {[%emt 0:00:01]} Nbd7 {[%emt 0:02:15] 7...Bc5 is the modern continuation.} 8. c4 {[%emt 0:00:03]} dxc4 {[%emt 0:00:52] The position is equal.} 9. dxc4 {[%emt 0:00:13]} e4 $5 {[%emt 0:02:43][%mdl 4] Leaves trodden paths.} 10. Bg2 {[%emt 0:01:36]} Bc5 {[%emt 0:00:21][%cal Oe4e3] [#]} 11. Nc3 $146 {[%emt 0:18:41]} ({Predecessor:} 11. Qb3 Qb6 12. Nc3 e3 13. f4 O-O 14. Na4 Qxb3 15. axb3 Bd4 16. b4 c5 17. Rd1 {1-0 (30) Bao,Q (2420)-Chan,L (2261) Adelaide 2018}) 11... Qe7 {[%emt 0:01:28]} (11... e3 $5 {[%cal Re3f2]}) 12. b4 {[%emt 0:04:05]} (12. e3 $11) 12... Bxb4 $15 {[%emt 0:01:22]} 13. Qc2 {[%emt 0:00:13][%cal Rc3e4]} Bxc3 {[%emt 0:02:03]} 14. Qxc3 {[%emt 0:00:05]} O-O {[%emt 0:02:37]} 15. Rb1 {[%emt 0:05:26]} b6 {[%emt 0:00:45]} 16. Bb2 {[%emt 0:13:28]} Rfe8 {[%emt 0:02:42][%cal Bf8e8,Be8e6,Be6d6][%mdl 32]} 17. Rfd1 {[%emt 0:08:51]} c5 {[%emt 0:06:25]} (17... Nc5 $17) 18. Rd5 {[%emt 0:08:26][%cal Og3g4]} Qf8 {[%emt 0:02:08]} 19. Rf5 {[%emt 0:00:24]} Qd6 {[%emt 0:02:22] Prevents Rd1.} 20. Rd5 {[%emt 0:01:02]} Qf8 {[%emt 0:00:09]} 21. Rf5 {[%emt 0:00:06]} Re6 {[%emt 0:03:43]} 22. Rd1 {[%emt 0:02:09]} Rae8 $1 {[%emt 0:01:12]} 23. Qc2 {[%emt 0:09:31]} Rd6 {[%emt 0:01:53] Black converts the advantage convincingly.} 24. g4 {[%emt 0:02:04]} h6 {[%emt 0:01:30]} 25. g5 {[%emt 0:02:59] Rxd6 is the strong threat.} hxg5 {[%emt 0:00:20]} 26. Rxg5 {[%emt 0:00:03]} Rxd1+ {[%emt 0:04:38]} 27. Qxd1 {[%emt 0:00:10]} Re6 {[%emt 0:00:07]} 28. h4 {[%emt 0:01:08]} (28. Qc2 $17) 28... Qd6 $1 $19 {[%emt 0:01:12]} 29. Qc1 {[%emt 0:01:00] [#]} e3 $1 {[%emt 0:11:02]} 30. fxe3 {[%emt 0:00:13]} Ne5 {[%emt 0:00:14]} 31. Bf3 {[%emt 0:07:01] [#] Inhibits Neg4.} (31. Bxe5 Rxe5 32. Rxe5 Qxe5 33. Bf3) 31... Neg4 $1 {[%emt 0:02:09][%mdl 512]} 32. Bxg4 {[%emt 0:07:17]} (32. Kf1 Qh2) 32... Qg3+ {[%emt 0:00:11]} 33. Kf1 {[%emt 0:00:01]} Nxg4 {[%emt 0:00:10][%csl Gg4][%cal Rg3f2]} 34. Rxg7+ {[%emt 0:00:06]} Kf8 {[%emt 0:00:04][%cal Rg4h2]} 35. Rxg4 {[%emt 0:00:21]} Qxg4 {[%emt 0:00:10]} 36. Qc3 {[%emt 0:02:02]} Qh3+ {[%emt 0:00:58]} 37. Ke1 {[%emt 0:00:26]} Qh1+ {[%emt 0:00:17]} 38. Kf2 {[%emt 0:00:55]} Qxh4+ {[%emt 0:00:09]} 39. Kf3 {[%emt 0:00:58]} Rg6 {[%emt 0:01:15] Weighted Error Value: White=0.81/Black=0.05 (flawless)} 0-1

[Event "1st Sales Oliveira Masters 2022"]
[Site "Sales Oliveira"]
[Date "2022.06.08"]
[Round "1.3"]
[White "Lima, Darcy"]
[Black "Labussiere, Victor"]
[Result "1-0"]
[WhiteElo "2488"]
[BlackElo "2349"]
[Annotator "TA"]
[PlyCount "37"]
[EventDate "2022.05.30"]
[EventType "swiss"]
[EventCountry "BRA"]
[SourceTitle "playchess.com"]
[Source "ChessBase"]
[SourceQuality "1"]
[TimeControl "40/5400+30:1800+30"]

{[%evp 17,18,27,36]} 1. Nf3 {[%emt 0:00:22]} d5 {[%emt 0:01:35]} 2. g3 {[%emt 0:00:21]} Nf6 {[%emt 0:01:36]} 3. Bg2 {[%emt 0:00:13]} g6 {[%emt 0:02:10]} 4. O-O {[%emt 0:01:30]} Bg7 {[%emt 0:00:24]} 5. d4 {[%emt 0:00:40]} O-O {[%emt 0:01:38]} 6. c4 {[%emt 0:00:04]} dxc4 {[%emt 0:01:50]} 7. Na3 {[%emt 0:00:28]} c3 {[%emt 0:00:16]} 8. bxc3 {[%emt 0:00:09]} c5 {[%emt 0:00:04]} 9. e3 {[%emt 0:03:24]} Nc6 {[%emt 0:00:37] [#]} {Predecessor:} 10. Bb2 $146 {D77: Fianchetto Grünfeld: 6 0-0: Replies other than 6...c6.} Qb6 11. Qe2 Be6 12. c4 Bf5 13. d5 Nb4 14. Rfd1 a6 15. Ne5 Rad8 16. e4 Bc8 17. Rab1 e6 18. Nd3 exd5 19. cxd5 {1-0 (49) Oparin,G (2652)-Mekhitarian,K (2554) Chess.com INT 2021} 1-0

[Event "1st Sales Oliveira Masters 2022"]
[Site "Sales Oliveira"]
[Date "2022.06.08"]
[Round "1.4"]
[White "Rodi, Luis Ernesto"]
[Black "Coro, Lucas"]
[Result "0-1"]
[ECO "B23"]
[WhiteElo "2351"]
[BlackElo "2398"]
[Annotator "TA"]
[PlyCount "94"]
[EventDate "2022.05.30"]
[EventType "swiss"]
[EventCountry "BRA"]
[SourceTitle "playchess.com"]
[Source "ChessBase"]
[SourceQuality "1"]
[TimeControl "40/5400+30:1800+30"]

{[%evp 9,94,11,17,0,0,-2,16,16,22,10,8,26,30,31,43,47,84,75,95,113,112,101,146,143,130,139,144,150,145,142,136,147,146,154,134,131,145,120,118,46,104,94,105,111,102,18,152,141,153,137,134,113,132,134,175,122,166,122,116,114,218,0,0,0,0,-8,-8,-651,-651,-637,-585,-572,-543,-552,-322,-458,-456,-439,-409,-459,-443,-433,-410,-29987,-29988,-29988,-29989]} 1. e4 {[%emt 0:00:14]} c5 {[%emt 0:00:37]} 2. Nc3 {[%emt 0:00:07]} Nc6 {[%emt 0:01:04]} 3. Bb5 {[%emt 0:00:12]} Nd4 {[%emt 0:01:25]} 4. Nf3 {[%emt 0:00:10]} a6 {[%emt 0:07:19]} 5. Bd3 {[%emt 0:00:09]} g6 {[%emt 0:06:45]} 6. O-O {[%emt 0:00:56] B23: Closed Sicilian: Lines without g3.} Bg7 {[%emt 0:00:53]} 7. Re1 {[%emt 0:00:16]} d6 {[%emt 0:07:36]} 8. Nxd4 {[%emt 0:03:50] The position is equal.} cxd4 {[%emt 0:01:24]} 9. Ne2 {[%emt 0:00:25]} (9. Nd5 e6 10. Nf4 Ne7 $11) 9... e5 {[%emt 0:01:29]} 10. c3 {[%emt 0:00:15]} dxc3 {[%emt 0:09:02]} 11. dxc3 {[%emt 0:00:46] [#]} Ne7 $146 {[%emt 0:01:56]} ({Predecessor:} 11... Be6 12. c4 Nf6 13. b3 O-O 14. Nc3 Nd7 15. a4 Qc7 16. Ba3 Nc5 17. Bc2 Rad8 {1-0 (38) Guseinov,G (2661)-Svane,F (2493) Chess.com INT 2022}) 12. Bc4 {[%emt 0:07:24]} h6 {[%emt 0:14:51]} 13. Qd3 {[%emt 0:07:07]} b5 {[%emt 0:04:13]} 14. Bb3 {[%emt 0:01:18]} Bb7 {[%emt 0:00:56]} 15. Rd1 {[%emt 0:01:41]} Nc8 {[%emt 0:09:07]} 16. a4 {[%emt 0:01:23]} O-O {[%emt 0:02:55]} 17. axb5 {[%emt 0:08:47]} axb5 {[%emt 0:00:10]} 18. Rxa8 {[%emt 0:00:08]} (18. Qxb5 Rxa1 19. Qxb7 Ne7 $15) 18... Bxa8 {[%emt 0:00:07]} 19. Qxb5 {[%emt 0:00:29]} Bxe4 {[%emt 0:00:59]} 20. Ng3 $1 {[%emt 0:00:07]} Bf5 {[%emt 0:03:30]} 21. Nxf5 {[%emt 0:02:22]} gxf5 {[%emt 0:00:08]} 22. Bc2 {[%emt 0:02:35]} Qf6 {[%emt 0:01:25]} 23. Qd3 {[%emt 0:01:55]} e4 {[%emt 0:00:38]} 24. Qg3 {[%emt 0:02:41]} (24. Qd5 $16) 24... Kh7 {[%emt 0:05:29]} (24... Qe6 $14) 25. f3 {[%emt 0:05:09][%cal Bf2f3,Bf3e4][%mdl 32]} Qe6 {[%emt 0:01:25]} 26. Qf4 $1 {[%emt 0:08:11][%cal Rf3e4]} Be5 {[%emt 0:02:02]} 27. Qe3 {[%emt 0:00:24]} (27. Qd2 $16) 27... Ne7 {[%emt 0:02:47]} (27... d5 $11 {keeps the balance.}) 28. fxe4 $16 {[%emt 0:03:20]} f4 {[%emt 0:00:08]} 29. Qf3 {[%emt 0:00:16]} Ng6 {[%emt 0:00:53]} 30. Qh5 {[%emt 0:00:34]} Rg8 {[%emt 0:03:48]} 31. Rf1 {[%emt 0:02:51]} Rg7 {[%emt 0:02:17]} 32. Bd1 {[%emt 0:09:52]} (32. Kh1 $18) 32... Kg8 {[%emt 0:03:27]} 33. Bg4 {[%emt 0:03:19]} Qc4 {[%emt 0:00:06]} 34. Bf5 {[%emt 0:00:16]} (34. Qxh6 $6 Bxc3 35. Bxf4 (35. bxc3 Qc5+ 36. Kh1 Rh7 $15) 35... Bd4+ 36. Be3 Ne5 $11) 34... f3 {[%emt 0:01:52]} (34... Ne7 $16 {might work better.} 35. Bxf4 Nxf5 36. Qxf5 Qe2) 35. Bxg6 $2 {[%emt 0:06:49] A strong pair of Bishops.} ({Don't blunder} 35. Bxh6 $2 Bd4+ $1 {[%mdl 512]} 36. cxd4 Qxd4+ 37. Rf2 Qd1+ 38. Rf1 f2+ 39. Kxf2 Qxh5 $19) (35. Qxf3 Nh4 36. Qf2 Rxg2+ 37. Qxg2+ Nxg2 38. Kxg2 d5 39. exd5 Qxd5+ 40. Rf3 h5 $17) ({White has to play} 35. g3 $18) 35... Qc5+ $11 {[%emt 0:00:19]} 36. Rf2 {[%emt 0:01:26][%cal Og6f7] Bxf7+! is the strong threat.} Bd4 $1 {[%emt 0:00:15] Chess con chili.} 37. Bxf7+ {[%emt 0:12:19]} Rxf7 {[%emt 0:00:48]} 38. Qg6+ $2 {[%emt 0:00:15][%mdl 8192] Loses the game.} (38. Qxc5 $11 Bxc5 {[#]} 39. g4 $1 (39. gxf3 $2 Rxf3 40. Kg2 Rxf2+ $19) (39. Bxh6 $2 fxg2 40. Kxg2 Rxf2+ 41. Kg3 Rxb2 $19)) 38... Rg7 $19 {[%emt 0:03:12]} 39. Qe6+ {[%emt 0:00:31]} Kf8 {[%emt 0:01:22][%cal Bg8f8,Bf8e8,Be8d7,Bd7c7][%mdl 32]} 40. Kf1 {[%emt 0:01:40]} Bxf2 {[%emt 0:00:09]} 41. Qf6+ {[%emt 0:30:13]} Rf7 {[%emt 0:31:00]} 42. Bxh6+ {[%emt 0:01:12]} (42. Qxh6+ $142 Ke7 43. gxf3 Rxf3 44. Bg5+ Kd7 45. Qg7+ Kc6 46. Kg2) 42... Ke8 {[%emt 0:00:06]} 43. Qe6+ {[%emt 0:02:32]} Re7 {[%emt 0:00:13]} 44. Qg8+ {[%emt 0:00:28]} Kd7 {[%emt 0:00:06]} 45. Qg4+ {[%emt 0:00:08]} Kc7 {[%emt 0:00:31] ( -> ...Qc4+)} 46. b4 {[%emt 0:03:07]} (46. Qxf3 $19 Bg1 47. Bf4) 46... Qc4+ {[%emt 0:01:03]} 47. Kxf2 {[%emt 0:00:34]} Qe2+ $1 {[%emt 0:00:06] Weighted Error Value: White=0.49/Black=0.25 (precise)} 0-1

[Event "1st Sales Oliveira Masters 2022"]
[Site "Sales Oliveira"]
[Date "2022.06.08"]
[Round "1.5"]
[White "Diamant, Andre"]
[Black "Supi, Luis Paulo"]
[Result "0-1"]
[ECO "D35"]
[WhiteElo "2539"]
[BlackElo "2590"]
[Annotator "TA"]
[PlyCount "78"]
[EventDate "2022.05.30"]
[EventType "swiss"]
[EventCountry "BRA"]
[SourceTitle "playchess.com"]
[Source "ChessBase"]
[SourceQuality "1"]
[TimeControl "40/5400+30:1800+30"]

{[%evp 18,78,15,0,42,2,2,-12,0,-104,-26,-33,-39,-38,-19,-72,-32,-51,-26,-41,-13,-18,-16,-229,-216,-204,-239,-229,-208,-512,-512,-501,-458,-426,-196,-191,-174,-391,-376,-368,-262,-319,-262,-286,-280,-283,-286,-312,-318,-309,-290,-350,-365,-331,-356,-333,-335,-438,-443,-616,-588,-615,-621]} 1. d4 {[%emt 0:00:04]} Nf6 {[%emt 0:00:15]} 2. c4 {[%emt 0:00:13]} e6 {[%emt 0:01:14]} 3. Nc3 {[%emt 0:00:07]} d5 {[%emt 0:00:34]} 4. cxd5 {[%emt 0:01:54]} exd5 {[%emt 0:00:06]} 5. Bg5 {[%emt 0:00:17]} c6 {[%emt 0:00:15]} 6. e3 {[%emt 0:00:22]} Bd6 {[%emt 0:00:44]} 7. Bd3 {[%emt 0:01:16]} O-O {[%emt 0:00:09]} 8. Qc2 {[%emt 0:06:35]} h6 {[%emt 0:00:27]} 9. Bh4 {[%emt 0:00:24]} Re8 {[%emt 0:00:19]} 10. Nf3 {[%emt 0:01:27]} Bg4 {[%emt 0:01:56] D35: Queen's Gambit Declined: Exchange Variation.} 11. O-O-O {[%emt 0:09:08]} Na6 $5 {[%emt 0:12:11][%mdl 4] An interesting side line.} 12. a3 {[%emt 0:04:06] Prevents Nb4.} b5 {[%emt 0:02:56][%cal Ob5b4] [#] The position is equal.} 13. Bf5 $146 {[%emt 0:20:25]} (13. Ne2 $11) ({Predecessor:} 13. h3 Bc8 14. Ne2 b4 15. Bxf6 gxf6 16. Qxc6 bxa3 17. Bxa6 axb2+ 18. Kc2 Bd7 19. Qxd5 {1-0 (52) Aparicio Navarro,P-Cid Royo,J Aragon 1994}) 13... Bxf3 {[%emt 0:08:41]} ({Better is} 13... Bxf5 $17 14. Qxf5 Re6) 14. gxf3 $11 {[%emt 0:01:08]} b4 {[%emt 0:00:03]} 15. axb4 {[%emt 0:05:03]} Nxb4 {[%emt 0:00:38]} 16. Qa4 {[%emt 0:01:20]} (16. Qd2 $11 {keeps the balance.}) 16... Rb8 {[%emt 0:02:16]} 17. Rhg1 $1 {[%emt 0:05:14]} Rb6 {[%emt 0:03:38]} (17... Bxh2 18. Rg2 Bd6 19. Rdg1 $11) 18. Qxa7 {[%emt 0:04:49][%cal Og1g7] aiming for Rxg7+!} Ra6 {[%emt 0:02:49]} 19. Qb7 {[%emt 0:00:49]} Kf8 {[%emt 0:13:06]} 20. Rxg7 $2 {[%emt 0:12:50] Loses the game.} Ra1+ $19 {[%emt 0:14:52]} 21. Nb1 {[%emt 0:00:41][%csl Gg7][%cal Rb7f7]} Kxg7 {[%emt 0:00:15] Chess con chili.} 22. Rg1+ {[%emt 0:01:43]} Kf8 {[%emt 0:00:06] White must now prevent ...Qe7.} 23. Bxf6 {[%emt 0:10:29]} (23. Bh7 {was the crucial defense.} Nxh7 24. Bxd8 Rxd8 25. Rg6) 23... Qxf6 {[%emt 0:00:16]} 24. Bh7 {[%emt 0:00:42][%csl Gh7][%cal Rg1g8]} Qh8 {[%emt 0:02:27]} 25. Qd7 {[%emt 0:06:30]} Rxb1+ {[%emt 0:00:12]} (25... Qxh7 26. Qxd6+ Re7 27. Qb8+ Re8 28. Qxb4+ Re7 29. Qb8+ Re8 30. Qd6+ Re7 31. Qb8+ Re8 32. Qd6+ Re7 33. Qb8+ $11) (25... Na2+ $142 26. Kd1 Be7) 26. Bxb1 {[%emt 0:00:23] [#]} Be7 {[%emt 0:01:15]} ({Inferior is} 26... Bxh2 27. Rg2 Bb8 28. Bg6 $11) 27. f4 $2 {[%emt 0:05:00]} (27. Qb7 {was called for.}) 27... c5 {[%emt 0:00:55]} 28. dxc5 {[%emt 0:00:39]} Bxc5 {[%emt 0:00:36] Threatens to win with ...Rb8.} 29. Qc7 {[%emt 0:00:46]} Be7 {[%emt 0:01:23]} 30. Bf5 {[%emt 0:00:03]} h5 {[%emt 0:04:58]} ({Not} 30... Ra8 $2 31. Kb1 $19) 31. Qb6 {[%emt 0:00:54]} d4 {[%emt 0:03:07]} 32. exd4 {[%emt 0:00:25]} Nd5 {[%emt 0:00:19][%csl LRb6,LRf4][%cal Bb4d5,Bd5f4,Bf4e2,Be2d4][%mdl 32]} 33. Qc6 {[%emt 0:00:29]} Nxf4 {[%emt 0:02:39] ...Ne2+ is the strong threat.} 34. Kb1 {[%emt 0:00:10]} Ne2 {[%emt 0:03:06]} ({But not} 34... Rd8 $2 35. Rd1) 35. Rd1 {[%emt 0:00:27]} Nxd4 {[%emt 0:00:48]} 36. Qc3 {[%emt 0:00:25] [#]} Rd8 {[%emt 0:00:21]} 37. Be4 {[%emt 0:00:33]} Qe5 {[%emt 0:01:07][%csl LRe4,LRh2] Black is clearly winning.} 38. Qe3 {[%emt 0:01:00]} Bg5 {[%emt 0:00:56] Against Qh6+} 39. Qa3+ {[%emt 0:00:09]} Kg7 {[%emt 0:00:32] Weighted Error Value: White=0.52/Black=0.22 (precise)} 0-1

[Event "1st Sales Oliveira Masters 2022"]
[Site "Sales Oliveira"]
[Date "2022.06.08"]
[Round "2.1"]
[White "Fier, Alexandr"]
[Black "Supi, Luis Paulo"]
[Result "1/2-1/2"]
[ECO "B41"]
[WhiteElo "2567"]
[BlackElo "2590"]
[Annotator "TA"]
[PlyCount "34"]
[EventDate "2022.05.30"]
[EventType "swiss"]
[EventCountry "BRA"]
[SourceTitle "playchess.com"]
[Source "ChessBase"]
[SourceQuality "1"]
[TimeControl "40/5400+30:1800+30"]

{[%evp 14,34,42,45,52,56,58,58,54,38,54,39,62,54,43,52,50,6,108,111,109,78,101]} 1. e4 {[%emt 0:00:10]} c5 {[%emt 0:00:04]} 2. Nf3 {[%emt 0:00:03]} e6 {[%emt 0:02:23]} 3. d4 {[%emt 0:00:07]} cxd4 {[%emt 0:00:04]} 4. Nxd4 {[%emt 0:00:03]} a6 {[%emt 0:00:03]} 5. c4 {[%emt 0:02:28]} Nf6 {[%emt 0:00:05]} 6. Nc3 {[%emt 0:00:03]} Qc7 {[%emt 0:00:04]} 7. a3 {[%emt 0:01:27]} b6 {[%emt 0:00:28]} 8. Be3 {[%emt 0:00:06]} Bb7 {[%emt 0:00:22] B41: Sicilian: Kan Variation: 5 c4.} 9. f3 {[%emt 0:00:06]} Nc6 {[%emt 0:00:01]} 10. Rc1 {[%emt 0:00:06] 10.Be2 is not played anymore.} Be7 {[%emt 0:01:31] White is slightly better.} 11. Qd2 {[%emt 0:00:05][%cal Oc3d5]} Ne5 {[%emt 0:03:35]} 12. Na4 {[%emt 0:04:34]} O-O {[%emt 0:02:51]} 13. b4 {[%emt 0:03:42]} Rab8 {[%emt 0:05:20]} 14. Be2 {[%emt 0:02:59]} Ng6 {[%emt 0:15:20]} 15. Nb3 {[%emt 0:05:54] [#]} Nxe4 $146 {[%emt 0:13:37]} ({Predecessor:} 15... Ba8 16. Qd4 Nf4 17. Bf1 e5 18. Qd2 Bxe4 19. fxe4 Nxe4 20. Qc2 Qc6 21. Nd4 exd4 22. Bxf4 {0-1 (30) Sosovicka,M (2098)-Hua,D (2229) Al Ain 2013}) 16. fxe4 $16 {[%emt 0:04:44]} Bxe4 {[%emt 0:00:16]} 17. O-O {[%emt 0:02:36] Hoping for Nxb6.} Bxg2 {[%emt 0:12:10] Weighted Error Value: White=0.08 (flawless) /Black=0.26 (precise)} 1/2-1/2

[Event "1st Sales Oliveira Masters 2022"]
[Site "Sales Oliveira"]
[Date "2022.06.08"]
[Round "2.2"]
[White "Coro, Lucas"]
[Black "Diamant, Andre"]
[Result "0-1"]
[ECO "B46"]
[WhiteElo "2398"]
[BlackElo "2539"]
[Annotator "TA"]
[PlyCount "100"]
[EventDate "2022.05.30"]
[EventType "swiss"]
[EventCountry "BRA"]
[SourceTitle "playchess.com"]
[Source "ChessBase"]
[SourceQuality "1"]
[TimeControl "40/5400+30:1800+30"]

{[%evp 22,100,20,17,20,0,6,0,0,0,0,0,0,0,-14,-10,-6,-12,0,-13,-10,-28,0,0,0,0,0,0,0,-14,-14,-13,-17,-18,-18,-66,0,-82,0,0,0,-10,-4,-20,-18,-19,0,0,0,0,0,0,0,-14,-15,-32,0,0,0,-10,-11,-7,0,-10,0,-14,0,-18,0,0,0,-31,-37,-66,-66,-646,-602,-692,-674,-638,-297]} 1. e4 {[%emt 0:00:13]} c5 {[%emt 0:00:02]} 2. Nf3 {[%emt 0:00:16]} e6 {[%emt 0:00:09]} 3. d4 {[%emt 0:00:39]} cxd4 {[%emt 0:00:03]} 4. Nxd4 {[%emt 0:00:09]} Nc6 {[%emt 0:00:09]} 5. Nc3 {[%emt 0:00:44]} a6 {[%emt 0:00:25]} 6. Nxc6 {[%emt 0:01:47]} bxc6 {[%emt 0:00:02]} 7. Bd3 {[%emt 0:00:24]} d5 {[%emt 0:00:10]} 8. O-O {[%emt 0:00:55]} Qc7 {[%emt 0:02:01]} 9. f4 {[%emt 0:10:14]} Bb7 {[%emt 0:02:03]} 10. Qe2 {[%emt 0:05:06]} Nf6 {[%emt 0:02:11]} 11. Bd2 {[%emt 0:02:01]} Be7 {[%emt 0:04:07]} 12. Rae1 {[%emt 0:00:37]} O-O {[%emt 0:04:24] B46: Sicilian: Taimanov: 5 Nc3 a6.} 13. e5 {[%emt 0:18:55]} Nd7 {[%emt 0:00:34]} 14. f5 {[%emt 0:00:08]} exf5 {[%emt 0:00:57] The position is equal.} 15. Bxf5 {[%emt 0:01:53]} Bc8 $1 {[%emt 0:15:20] [#]} 16. Na4 $146 {[%emt 0:15:50]} ({Predecessor:} 16. e6 Nf6 17. Bf4 Qb6+ 18. Kh1 Qxb2 19. Be5 Qa3 20. Bxf6 Bxf6 21. exf7+ Rxf7 22. Bxh7+ Kxh7 23. Qh5+ Kg8 24. Re8+ Rf8 {½-½ (24) Gonzalez Gigato,J (2173)-Baufays,H (2335) ICCF email 2017}) 16... Nc5 {[%emt 0:05:48]} 17. Nxc5 {[%emt 0:00:12]} Bxc5+ {[%emt 0:00:11]} 18. Kh1 {[%emt 0:00:11]} Bxf5 {[%emt 0:00:40]} 19. Rxf5 {[%emt 0:00:08]} Rfe8 {[%emt 0:11:43]} 20. Qd3 {[%emt 0:07:39]} g6 {[%emt 0:04:53]} 21. Rff1 {[%emt 0:02:09]} Bf8 {[%emt 0:05:43]} ({But not} 21... Rxe5 22. Bf4 Bd6 23. Bxe5 Bxe5 24. Qe3 $14) 22. c4 {[%emt 0:04:58]} Qb7 {[%emt 0:08:32]} 23. cxd5 {[%emt 0:05:43]} cxd5 {[%emt 0:00:09]} 24. Bc3 {[%emt 0:05:30]} Bg7 {[%emt 0:01:14]} 25. Bd4 {[%emt 0:01:54]} Re6 {[%emt 0:00:56]} 26. Re2 {[%emt 0:01:33]} Rae8 {[%emt 0:02:35][%cal Rg7e5,Ba8e8,Be8e7,Be7b7,Bb7b2][%mdl 32]} 27. Rfe1 $1 {[%emt 0:06:15]} Qb8 {[%emt 0:01:33][%cal Rg7e5]} 28. h3 {[%emt 0:02:25]} (28. Qg3 $11 {deserves consideration.}) 28... h5 {[%emt 0:03:12]} ({Black should try} 28... Bxe5 $15 29. Bxe5 Rxe5) 29. Re3 {[%emt 0:00:41]} (29. Bc3 $11) 29... Qd8 {[%emt 0:07:10]} (29... Bxe5 $17 30. Bxe5 Rxe5 31. Rxe5 Rxe5 32. Rxe5 Qxe5 33. Qxa6 d4 34. Qc8+ Kg7) 30. Bc3 $11 {[%emt 0:00:44][%cal Bd4c3,Bc3b4,Bb4d6][%mdl 32]} R8e7 {[%emt 0:05:45]} 31. Bb4 {[%emt 0:01:02]} Rb7 {[%emt 0:00:19]} 32. Bd6 {[%emt 0:00:35]} Rxb2 {[%emt 0:03:27]} 33. Qxd5 {[%emt 0:00:13]} Qg5 {[%emt 0:07:08][%cal Oe6d6] [#] ...Rxd6! is the strong threat.} 34. R3e2 {[%emt 0:01:48]} Rxe2 {[%emt 0:00:49]} 35. Rxe2 {[%emt 0:00:11]} Qc1+ {[%emt 0:01:31]} 36. Kh2 {[%emt 0:00:06]} Qf1 {[%emt 0:00:51]} 37. Re4 {[%emt 0:02:30]} Bh6 {[%emt 0:01:03]} 38. Qc4 {[%emt 0:00:35]} Qb1 {[%emt 0:01:06]} 39. Re2 {[%emt 0:00:51]} Qf5 {[%emt 0:00:31]} 40. Re4 {[%emt 0:01:05] Prevents Qf4+.} Qf2 {[%emt 0:00:22]} 41. Bc5 {[%emt 0:30:58] Prevents Be3.} Qf5 $36 {[%emt 0:30:40][%mdl 2048] Hoping for ...Rc6. Black is pushing.} 42. Bd6 $1 {[%emt 0:00:07]} Qf2 {[%emt 0:00:11]} 43. Bc5 {[%emt 0:00:12] Against Be3} Qb2 {[%emt 0:00:18]} 44. Bd6 {[%emt 0:00:24]} Qb1 {[%emt 0:00:52]} 45. Qe2 {[%emt 0:00:26]} Bg5 {[%emt 0:00:36]} 46. Qf3 {[%emt 0:00:58]} Qxa2 {[%emt 0:00:27]} 47. Rb4 {[%emt 0:00:59] White threatens Rb8+ and mate.} Re8 {[%emt 0:00:08]} 48. Rb3 $2 {[%emt 0:00:48][%mdl 8192] [#]} (48. Qc6 $15 Rd8 49. h4) 48... Bf4+ $1 $19 {[%emt 0:00:32][%mdl 512] Black is clearly winning.} 49. Kg1 {[%emt 0:00:45]} (49. Qxf4 Qxb3) 49... Qa1+ {[%emt 0:00:28]} 50. Kf2 {[%emt 0:00:05]} h4 {[%emt 0:01:30] Weighted Error Value: White=0.31/Black=0.09 (flawless)} 0-1